bitfinex-derivatives/quotes_BTCF0:USTF0_20240815
["timestamp","ask_amount","ask_price","bid_price","bid_amount"]
[1723728900418,0.3608,59401.0,59390.0,0.3608]
[1723728900702,0.3608,59401.0,59390.0,0.28545986]
[1723728900703,0.5808,59401.0,59390.0,0.28545986]
[1723728900901,0.25304051,59400.0,59393.0,2.52005009]
[1723728901095,0.54304051,59400.0,59393.0,2.52005009]
[1723728901291,0.54304051,59400.0,59397.0,0.084174]
[1723728901496,0.62721251,59400.0,59393.0,0.00232]
[1723728901700,0.3608,59396.0,59395.0,0.084178]
[1723728902005,0.44,59399.0,59398.0,0.084174]
[1723728902205,0.44,59399.0,59391.0,0.36105268]
[1723728902206,0.18,59399.0,59391.0,0.36105268]
[1723728902412,0.3608,59394.0,59391.0,0.00025268]
[1723728902597,0.6808,59394.0,59393.0,2.52005009]
[1723728902798,0.6808,59394.0,59393.0,2.52105009]
[1723728903101,0.6808,59394.0,59366.0,0.3508]
[1723728903102,0.084191,59386.0,59366.0,0.3508]
[1723728903297,0.084191,59386.0,59371.0,0.084211]
[1723728903298,0.1597,59385.0,59371.0,0.084211]
[1723728903616,0.3608,59376.0,59375.0,2.48656009]
[1723728903907,0.3608,59376.0,59372.0,0.63071854]
[1723728903908,0.16,59376.0,59372.0,0.63071854]
[1723728904202,0.17,59376.0,59375.0,2.48656009]
[1723728904401,0.17,59376.0,59375.0,2.57076609]
[1723728904600,0.16,59376.0,59375.0,2.85622595]
[1723728904796,0.16,59376.0,59375.0,2.57076609]
[1723728905008,0.17,59376.0,59375.0,2.48656009]
[1723728905495,0.084208,59374.0,59372.0,0.00025268]
[1723728905703,0.084209,59373.0,59372.0,0.00025268]
[1723728905903,0.084218,59367.0,59358.0,0.08423]
[1723728906099,0.084218,59367.0,59362.0,2.48656009]
[1723728906100,0.14,59367.0,59362.0,2.48656009]
[1723728906296,0.00088,59373.0,59372.0,0.168422]
[1723728906491,0.3994,59385.0,59384.0,0.084194]
[1723728906492,0.0778,59385.0,59384.0,0.084194]
[1723728906696,0.3178,59385.0,59384.0,2.57075409]
[1723728906993,0.32590133,59385.0,59384.0,2.57075409]
[1723728907195,0.24810133,59385.0,59384.0,2.84833395]
[1723728907391,0.24,59385.0,59384.0,3.20913395]
[1723728907601,0.00025268,59390.0,59384.0,3.12493995]
[1723728907805,0.16025268,59390.0,59389.0,2.57074609]
[1723728908018,0.52105268,59390.0,59389.0,2.57074609]
[1723728908307,0.79289146,59390.0,59379.0,2.83961277]
[1723728908507,0.79289146,59390.0,59373.0,0.084209]
[1723728908508,0.3608,59380.0,59373.0,0.084209]
[1723728908711,0.084202,59378.0,59368.0,0.084216]
[1723728908900,0.5,59378.0,59372.0,2.48756009]
[1723728909091,0.084207,59375.0,59372.0,2.48756009]
[1723728909292,0.22,59375.0,59372.0,2.48756009]
[1723728909498,0.22,59375.0,59367.0,0.3608]
[1723728909499,0.43079603,59374.0,59367.0,0.3608]
[1723728909712,0.3608,59370.0,59354.0,0.3608]
[1723728910002,0.3608,59370.0,59363.0,2.48656009]
[1723728910003,0.3608,59365.0,59363.0,2.48656009]
[1723728910210,0.14,59365.0,59364.0,0.445022]
[1723728910503,0.084188,59388.0,59379.0,0.084201]
[1723728910707,0.8408,59386.0,59380.0,1.90491876]
[1723728910901,0.25399123,59384.0,59380.0,1.90491876]
[1723728911213,0.15,59384.0,59383.0,0.444994]
[1723728911506,0.00025268,59388.0,59387.0,0.084189]
[1723728911697,0.3216,59404.0,59397.0,1.52754189]
[1723728911897,0.3216,59404.0,59400.0,0.3608]
[1723728911898,0.54818822,59404.0,59400.0,0.3608]
[1723728912093,0.25319519,59402.0,59400.0,0.3608]
[1723728912303,0.25,59402.0,59400.0,0.3608]
[1723728912804,0.25319519,59401.0,59400.0,0.3608]
[1723728913002,0.81319519,59401.0,59400.0,0.3608]
[1723728913508,0.89736419,59401.0,59400.0,0.3608]
[1723728913806,1.07349275,59401.0,59400.0,0.3608]
[1723728914107,0.89736419,59401.0,59400.0,0.3618]
[1723728914303,0.89736419,59401.0,59400.0,0.001]
[1723728914503,0.98153319,59401.0,59400.0,0.001]
[1723728914711,0.98153319,59401.0,59400.0,0.002]
[1723728914893,1.38153319,59401.0,59400.0,0.002]
[1723728915094,1.57434997,59401.0,59400.0,0.002]
[1723728915302,1.09018097,59401.0,59400.0,0.001]
[1723728915506,0.81319519,59401.0,59400.0,1.89034189]
[1723728916310,0.81319519,59401.0,59400.0,1.97451289]
[1723728917010,0.81319519,59401.0,59400.0,1.89034189]
[1723728917411,0.81319519,59401.0,59400.0,1.97451289]
[1723728917710,0.56,59401.0,59400.0,2.25209275]
[1723728918096,0.00825975,59404.0,59403.0,0.084167]
[1723728918312,0.00025268,59407.0,59403.0,0.084167]
[1723728918313,0.00025268,59407.0,59406.0,0.084162]
[1723728918517,0.25656565,59418.0,59408.0,0.084159]
[1723728918811,0.44656565,59418.0,59417.0,1.88834189]
[1723728919001,0.44656565,59418.0,59417.0,0.3608]
[1723728919207,0.70721594,59418.0,59417.0,0.3608]
[1723728919403,0.79946287,59418.0,59417.0,0.3608]
[1723728919603,0.71531787,59418.0,59410.0,0.3608]
[1723728919808,0.71531787,59418.0,59412.0,1.52754189]
[1723728920005,0.71531787,59418.0,59417.0,1.97248889]
[1723728920202,0.71531787,59418.0,59417.0,1.88834189]
[1723728920408,0.71531787,59418.0,59417.0,1.97248889]
[1723728920599,0.71531787,59418.0,59417.0,1.88934189]
[1723728920804,0.71531787,59418.0,59417.0,0.3618]
[1723728921003,0.70705992,59418.0,59417.0,0.3618]
[1723728921207,0.70717972,59418.0,59417.0,1.97448889]
[1723728921803,0.70717972,59418.0,59417.0,2.25206875]
[1723728922006,0.70717972,59418.0,59417.0,1.89034189]
[1723728922311,0.79132472,59418.0,59417.0,0.3628]
[1723728922618,0.70717972,59418.0,59417.0,0.3628]
[1723728922910,0.70717972,59418.0,59417.0,1.89034189]
[1723728923111,0.70717972,59418.0,59417.0,1.97448889]
[1723728923309,0.70717972,59418.0,59417.0,2.25206875]
[1723728924329,0.13111848,59418.0,59417.0,2.42036275]
[1723728924613,0.09940996,59459.0,59441.0,0.87942577]
[1723728924805,0.49463435,59471.0,59417.0,0.3628]
[1723728924806,0.64218853,59448.0,59447.0,1.40843377]
[1723728925010,0.64218853,59448.0,59447.0,0.444904]
[1723728925011,0.27250084,59448.0,59447.0,0.444904]
[1723728925214,0.70413803,59448.0,59447.0,1.32432977]
[1723728925403,0.26414141,59448.0,59447.0,1.32432977]
[1723728925808,0.5157786,59448.0,59447.0,1.24022577]
[1723728926012,0.6557786,59448.0,59447.0,1.32432977]
[1723728926213,0.6957786,59448.0,59447.0,1.24022577]
[1723728926516,0.6857786,59448.0,59447.0,1.24122577]
[1723728926712,0.71439316,59448.0,59447.0,1.24122577]
[1723728927022,0.6857786,59448.0,59447.0,0.445904]
[1723728927319,0.6857786,59448.0,59447.0,1.72532977]
[1723728927320,0.26414141,59448.0,59447.0,1.72532977]
[1723728927614,0.63279191,59468.0,59463.0,0.44362884]
[1723728927615,0.00092,59468.0,59463.0,0.44362884]
[1723728927912,0.084062,59477.0,59467.0,1.16522884]
[1723728928114,0.16815,59468.0,59467.0,0.3608]
[1723728928318,0.18,59468.0,59467.0,0.3608]
[1723728928619,0.40247092,59468.0,59467.0,0.3608]
[1723728928801,0.48654592,59468.0,59467.0,0.3608]
[1723728929005,0.80247092,59468.0,59462.0,0.00025222]
[1723728929202,0.40247092,59468.0,59466.0,0.3608]
[1723728929411,0.40247092,59468.0,59466.0,0.80442884]
[1723728929808,0.40247092,59468.0,59466.0,0.3608]
[1723728930028,0.40247092,59468.0,59467.0,0.001]
[1723728930310,0.00025085,59473.0,59467.0,0.80542884]
[1723728930511,0.18025085,59473.0,59472.0,0.3608]
[1723728930710,0.00025085,59473.0,59472.0,0.88849784]
[1723728931316,0.15025085,59473.0,59472.0,0.88849784]
[1723728931611,0.49601164,59473.0,59472.0,0.3608]
[1723728931803,1.41045164,59473.0,59472.0,0.3608]
[1723728932006,0.08409,59458.0,59451.0,0.04938647]
[1723728932206,0.084094,59454.0,59447.0,0.3608]
[1723728932405,0.26,59454.0,59447.0,0.3608]
[1723728932608,0.25226339,59453.0,59447.0,0.3608]
[1723728932805,0.25226339,59453.0,59452.0,0.3608]
[1723728933004,0.39226339,59453.0,59447.0,0.3608]
[1723728933215,0.16,59453.0,59451.0,0.44362884]
[1723728933410,0.25222637,59463.0,59447.0,0.3608]
[1723728933411,0.00849954,59476.0,59452.0,0.3608]
[1723728933605,0.18,59476.0,59475.0,0.084065]
[1723728933803,0.02,59476.0,59471.0,0.3608]
[1723728934008,0.27171717,59478.0,59471.0,0.3608]
[1723728934213,0.27171717,59478.0,59477.0,0.084062]
[1723728934421,0.27171717,59478.0,59471.0,0.3608]
[1723728934422,0.29171717,59478.0,59471.0,0.3608]
[1723728934607,0.46171717,59478.0,59471.0,0.3608]
[1723728935214,0.25119641,59477.0,59472.0,0.00025222]
[1723728935414,0.76119641,59477.0,59471.0,0.35324121]
[1723728935719,0.51,59477.0,59471.0,0.35324121]
[1723728935919,0.51,59477.0,59476.0,0.3608]
[1723728936118,0.51,59477.0,59476.0,0.444863]
[1723728936325,0.76057449,59477.0,59476.0,0.444863]
[1723728936818,0.76257449,59477.0,59476.0,0.3608]
[1723728937023,0.76257449,59477.0,59459.0,0.3608]
[1723728937024,1.12337449,59477.0,59459.0,0.3608]
[1723728937318,0.3608,59469.0,59459.0,0.3608]
[1723728937540,0.6908,59469.0,59459.0,0.3608]
[1723728937714,0.25163798,59468.0,59463.0,0.084081]
[1723728937915,0.58163798,59468.0,59465.0,0.084079]
[1723728938113,0.58163798,59468.0,59454.0,0.3608]
[1723728938322,0.58163798,59468.0,59454.0,0.444894]
[1723728938323,0.3608,59463.0,59454.0,0.444894]
[1723728938515,0.7608,59463.0,59458.0,0.084088]
[1723728938719,0.25085887,59462.0,59458.0,0.084088]
[1723728938915,0.25085887,59462.0,59447.0,0.4405]
[1723728938916,0.3608,59461.0,59448.0,0.084103]
[1723728939123,0.5108,59461.0,59460.0,0.084086]
[1723728939618,0.15,59461.0,59460.0,0.084086]
[1723728939924,0.4111052,59461.0,59458.0,0.001]
[1723728940127,0.4111052,59461.0,59449.0,0.00025222]
[1723728940128,0.3608,59459.0,59449.0,0.00025222]
[1723728940421,0.3608,59453.0,59449.0,0.00025222]
[1723728940625,0.8393783,59453.0,59449.0,0.00025222]
[1723728940819,0.2510983,59452.0,59449.0,0.00025222]
[1723728941014,0.7210983,59452.0,59449.0,0.00025222]
[1723728941427,0.5046,59451.0,59449.0,0.00025222]
[1723728941631,1.0146,59451.0,59449.0,0.00025222]
[1723728941813,1.60895408,59451.0,59449.0,0.00025222]
[1723728942245,1.52831408,59451.0,59449.0,0.00025222]
[1723728943526,1.52831408,59451.0,59449.0,0.00125222]
[1723728943527,2.39675408,59451.0,59449.0,0.00125222]
[1723728944827,1.06811408,59451.0,59449.0,0.00125222]
[1723728945014,1.10431408,59451.0,59449.0,0.00025222]
[1723728945215,1.11331408,59451.0,59449.0,0.00225222]
[1723728946031,0.084116,59439.0,59438.0,0.35398677]
[1723728946331,0.084116,59439.0,59433.0,0.00019702]
[1723728946332,1.10719546,59439.0,59433.0,0.00019702]
[1723728946527,0.084119,59437.0,59433.0,0.00019702]
[1723728946735,0.084123,59434.0,59433.0,0.00019702]
[1723728946919,0.594123,59434.0,59433.0,0.00019702]
[1723728947122,0.594123,59434.0,59426.0,0.34318407]
[1723728947123,0.95310612,59434.0,59426.0,0.34318407]
[1723728947321,0.084133,59427.0,59426.0,0.34318407]
[1723728947537,0.624133,59427.0,59426.0,0.34318407]
[1723728947824,0.98310612,59427.0,59426.0,0.34318407]
[1723728948027,0.79335533,59427.0,59426.0,0.34318407]
[1723728948423,0.87748833,59427.0,59426.0,0.33408407]
[1723728948620,0.87748833,59427.0,59415.0,0.3608]
[1723728948621,0.084144,59420.0,59415.0,0.3608]
[1723728948826,0.52,59420.0,59415.0,1.87472]
[1723728949026,0.52,59420.0,59415.0,0.3608]
[1723728949027,0.44111903,59419.0,59415.0,0.3608]
[1723728949225,0.99111903,59419.0,59409.0,0.3608]
[1723728949423,0.084153,59413.0,59409.0,1.86461115]
[1723728949623,0.084157,59410.0,59409.0,1.86461115]
[1723728949825,0.084157,59410.0,59402.0,0.0869]
[1723728949826,0.49,59410.0,59402.0,0.0869]
[1723728950027,0.3608,59405.0,59402.0,1.59202]
[1723728950330,0.3608,59403.0,59389.0,0.35099926]
[1723728950524,0.444977,59396.0,59389.0,0.35099926]
[1723728950723,0.444977,59396.0,59382.0,0.3608]
[1723728950724,0.084182,59392.0,59382.0,0.3608]
[1723728951029,0.3608,59386.0,59379.0,0.0908]
[1723728951234,0.00015988,59385.0,59379.0,1.42213394]
[1723728951430,0.72261256,59385.0,59381.0,0.00017022]
[1723728951928,0.084194,59384.0,59376.0,0.3608]
[1723728952231,0.084194,59384.0,59370.0,0.3608]
[1723728952232,0.3608,59380.0,59370.0,0.3608]
[1723728952432,0.00019039,59379.0,59371.0,1.42213394]
[1723728952735,0.94936827,59379.0,59371.0,1.42213394]
[1723728952940,0.77185562,59379.0,59369.0,0.3608]
[1723728953139,0.77185562,59379.0,59378.0,1.42213394]
[1723728953436,0.77185562,59379.0,59376.0,1.42413394]
[1723728953830,0.85605662,59379.0,59376.0,0.002]
[1723728954030,0.17586995,59378.0,59376.0,0.002]
[1723728954224,0.16,59378.0,59377.0,0.084204]
[1723728954434,0.00019039,59379.0,59378.0,0.084202]
[1723728954634,0.00019039,59379.0,59378.0,1.42213394]
[1723728954635,0.15019039,59379.0,59378.0,1.42213394]
[1723728954839,0.63267484,59379.0,59376.0,0.002]
[1723728955023,0.99347484,59379.0,59376.0,0.002]
[1723728955334,0.18939008,59378.0,59371.0,0.015]
[1723728955530,0.3608,59373.0,59371.0,1.43713394]
[1723728955729,0.51762434,59373.0,59371.0,0.092211]
[1723728955930,0.51762434,59373.0,59372.0,1.42213394]
[1723728955931,0.15682434,59373.0,59372.0,1.42213394]
[1723728956136,0.15682434,59373.0,59369.0,0.3708]
[1723728956137,0.25162776,59372.0,59369.0,0.01]
[1723728956329,0.41011205,59372.0,59371.0,0.084212]
[1723728956640,0.41011205,59372.0,59371.0,1.50634594]
[1723728956641,0.14848429,59372.0,59371.0,1.50634594]
[1723728956943,0.14848429,59372.0,59371.0,1.51434594]
[1723728957833,0.14848429,59372.0,59371.0,1.43713394]
[1723728958241,0.14848429,59372.0,59371.0,1.52134594]
[1723728958535,0.14848429,59372.0,59371.0,1.51334594]
[1723728958740,0.85169646,59372.0,59371.0,0.015]
[1723728959239,0.49089646,59372.0,59371.0,0.015]
[1723728960332,0.49089646,59372.0,59371.0,0.099212]
[1723728960535,0.49089646,59372.0,59371.0,1.52134594]
[1723728960739,0.1804952,59372.0,59371.0,1.52134594]
[1723728961032,0.1804952,59372.0,59371.0,1.88214594]
[1723728961238,0.12993637,59372.0,59371.0,1.88214594]
[1723728961636,0.25,59374.0,59373.0,1.50634294]
[1723728961637,0.26,59374.0,59373.0,1.50634294]
[1723728961844,0.17,59374.0,59373.0,1.42213394]
[1723728962031,0.17,59374.0,59371.0,0.3758]
[1723728962032,0.42112904,59374.0,59371.0,0.3758]
[1723728962231,0.42112904,59374.0,59366.0,0.3608]
[1723728962434,0.084212,59372.0,59366.0,1.78238892]
[1723728962632,0.624212,59372.0,59366.0,1.78238892]
[1723728962851,0.25112904,59371.0,59366.0,1.78238892]
[1723728963039,0.73112904,59371.0,59366.0,1.78238892]
[1723728963744,0.73112904,59371.0,59368.0,1.42158892]
[1723728963938,0.73112904,59371.0,59370.0,1.50580192]
[1723728964643,0.48,59371.0,59370.0,1.67422792]
[1723728964944,0.001,59372.0,59371.0,0.084212]
[1723728965144,0.16961185,59372.0,59371.0,1.86660092]
[1723728965440,0.161,59372.0,59366.0,0.3828]
[1723728965640,0.78427195,59372.0,59366.0,0.3828]
[1723728965843,0.78427195,59372.0,59347.0,0.3608]
[1723728965844,0.3608,59367.0,59347.0,0.3608]
[1723728966043,0.3608,59367.0,59364.0,1.42158892]
[1723728966044,0.8808,59367.0,59364.0,1.42158892]
[1723728966240,0.8808,59367.0,59352.0,0.3608]
[1723728966241,0.084225,59362.0,59358.0,1.42158892]
[1723728966545,0.084235,59356.0,59352.0,0.3608]
[1723728966739,0.86930819,59356.0,59346.0,0.3608]
[1723728966948,0.42958836,59355.0,59349.0,1.41358892]
[1723728967141,0.96958836,59355.0,59348.0,1.41358892]
[1723728967444,0.96958836,59355.0,59346.0,0.3608]
[1723728967445,0.96958836,59355.0,59346.0,1.77438892]
[1723728967647,0.96958836,59355.0,59346.0,1.41358892]
[1723728967953,0.3608,59351.0,59335.0,0.3608]
[1723728968146,0.9008,59351.0,59346.0,0.006]
[1723728968336,0.42886838,59350.0,59349.0,0.084242]
[1723728968537,0.78262132,59350.0,59346.0,0.006]
[1723728968745,0.084243,59349.0,59346.0,0.006]
[1723728969044,0.084246,59347.0,59346.0,0.006]
[1723728969235,0.49,59347.0,59346.0,0.006]
[1723728969547,0.92250163,59347.0,59346.0,0.00352773]
[1723728969844,0.92250163,59347.0,59335.0,0.35553488]
[1723728970067,0.3608,59336.0,59328.0,0.00184]
[1723728970240,0.6608,59336.0,59335.0,0.084263]
[1723728970546,0.19,59336.0,59332.0,1.41358892]
[1723728970740,0.441389,59336.0,59332.0,1.41358892]
[1723728970937,0.17,59336.0,59335.0,1.58211492]
[1723728971137,0.36172,59349.0,59346.0,0.084248]
[1723728971354,0.41,59347.0,59346.0,1.49783692]
[1723728971552,0.6624359,59347.0,59346.0,1.49783692]
[1723728971853,0.4324359,59347.0,59346.0,1.94288492]
[1723728972149,0.3608,59371.0,59351.0,0.25272]
[1723728972445,0.25261454,59369.0,59358.0,0.3608]
[1723728972747,0.3608,59366.0,59362.0,1.41333627]
[1723728973045,0.33725345,59365.0,59352.0,0.3608]
[1723728973247,0.445028,59361.0,59352.0,0.3608]
[1723728973449,0.8708,59361.0,59353.0,1.37445705]
[1723728973648,0.3608,59355.0,59353.0,0.00025265]
[1723728973836,0.8508,59355.0,59345.0,0.3608]
[1723728974049,0.2527752,59354.0,59350.0,1.36791567]
[1723728974254,1.1135752,59354.0,59350.0,1.36791567]
[1723728974548,1.68935783,59354.0,59337.0,0.445059]
[1723728974750,0.3608,59342.0,59339.0,1.36791567]
[1723728974947,0.6908,59342.0,59339.0,1.36791567]
[1723728975142,0.43672648,59341.0,59337.0,0.3608]
[1723728975351,0.63672648,59341.0,59339.0,0.084257]
[1723728975545,0.45272096,59341.0,59338.0,1.36975567]
[1723728975855,0.45272096,59341.0,59338.0,1.36791567]
[1723728976650,0.45272096,59341.0,59337.0,0.3608]
[1723728976950,0.45872096,59341.0,59340.0,1.45217167]
[1723728977654,0.46772096,59341.0,59340.0,1.45217167]
[1723728978052,0.46976026,59341.0,59337.0,0.41018647]
[1723728978349,0.46976026,59341.0,59333.0,0.06584862]
[1723728978350,0.445059,59338.0,59335.0,0.04950281]
[1723728978540,0.445059,59338.0,59325.0,0.09813077]
[1723728978541,0.8508,59338.0,59330.0,0.04950281]
[1723728978743,0.3608,59333.0,59329.0,1.45218767]
[1723728978954,0.3608,59331.0,59327.0,1.36791567]
[1723728979154,0.8508,59331.0,59327.0,1.36791567]
[1723728979457,0.49,59331.0,59330.0,1.45218567]
[1723728979759,1.14195994,59331.0,59326.0,0.40064862]
[1723728979953,0.424,59327.0,59304.0,0.3608]
[1723728980252,0.424,59327.0,59320.0,0.084284]
[1723728980253,0.3608,59321.0,59320.0,0.084284]
[1723728980551,0.75477993,59321.0,59320.0,0.084284]
[1723728980755,0.75477993,59321.0,59320.0,1.37151275]
[1723728981056,0.14,59321.0,59320.0,1.37151275]
[1723728981252,0.08939684,59321.0,59320.0,1.37151275]
[1723728981463,0.03035988,59321.0,59320.0,1.37151275]
[1723728982464,0.28896477,59321.0,59320.0,1.28722875]
[1723728982651,0.03535988,59321.0,59320.0,1.28722875]
[1723728982854,0.03935988,59321.0,59320.0,1.28722875]
[1723728983158,0.29385982,59321.0,59320.0,1.28722875]
[1723728983350,0.29385982,59321.0,59320.0,1.37151275]
[1723728983560,0.28985982,59321.0,59320.0,1.37151275]
[1723728983856,0.50985982,59321.0,59320.0,1.28722875]
[1723728984041,0.50485982,59321.0,59320.0,1.37451275]
[1723728984246,0.25035988,59321.0,59320.0,1.37451275]
[1723728984459,0.25435988,59321.0,59320.0,1.37451275]
[1723728984644,0.25935988,59321.0,59320.0,1.37151275]
[1723728985253,0.25935988,59321.0,59320.0,1.45579675]
[1723728985457,0.01,59327.0,59326.0,0.084276]
[1723728985649,0.60538,59343.0,59326.0,0.084276]
[1723728985650,0.00849049,59336.0,59326.0,0.7608]
[1723728985846,0.17,59336.0,59328.0,0.06576586]
[1723728986046,0.17858241,59336.0,59335.0,0.084263]
[1723728986253,0.17,59336.0,59335.0,0.168526]
[1723728986561,0.3608,59356.0,59344.0,0.08425]
[1723728986761,1.09693258,59349.0,59344.0,0.08425]
[1723728986954,0.25179473,59341.0,59339.0,0.3608]
[1723728987155,0.7108,59341.0,59336.0,0.05576586]
[1723728987461,0.25223247,59340.0,59335.0,0.084263]
[1723728987765,0.79069429,59340.0,59332.0,0.445067]
[1723728988061,0.79069429,59340.0,59332.0,0.3608]
[1723728988453,0.80068237,59340.0,59332.0,0.3608]
[1723728988654,0.18120957,59339.0,59330.0,0.00025286]
[1723728988953,0.25203938,59338.0,59333.0,0.084265]
[1723728989156,0.3608,59335.0,59333.0,0.084265]
[1723728989362,0.48,59335.0,59333.0,0.084265]
[1723728989657,0.25203938,59334.0,59333.0,0.084265]
[1723728989955,0.02270276,59340.0,59334.0,0.084265]
[1723728989956,0.00925286,59340.0,59334.0,0.084265]
[1723728990163,0.15925286,59340.0,59339.0,0.445057]
[1723728990351,0.15925286,59340.0,59339.0,0.529314]
[1723728990550,0.00858923,59359.0,59339.0,1.39474743]
[1723728990752,0.05885994,59359.0,59354.0,0.3608]
[1723728991049,0.3608,59371.0,59355.0,0.50544]
[1723728991250,0.50866207,59371.0,59370.0,0.084213]
[1723728991453,0.17,59371.0,59370.0,0.805813]
[1723728991651,0.00088,59391.0,59385.0,0.084191]
[1723728991863,0.35088,59391.0,59383.0,0.3608]
[1723728992058,0.25401896,59390.0,59383.0,0.3608]
[1723728992258,0.3608,59393.0,59383.0,0.3608]
[1723728992462,0.5108,59393.0,59383.0,0.3608]
[1723728992651,0.0182771,59400.0,59389.0,0.3608]
[1723728992855,0.3608,59408.0,59397.0,0.3608]
[1723728993155,0.2539669,59405.0,59397.0,0.3608]
[1723728993562,0.3608,59408.0,59402.0,0.3608]
[1723728993860,0.3608,59420.0,59411.0,0.084155]
[1723728994048,0.3608,59420.0,59407.0,0.3608]
[1723728994049,0.6308,59420.0,59407.0,0.3608]
[1723728994251,0.25329224,59419.0,59413.0,0.3608]
[1723728994453,0.39329224,59419.0,59413.0,0.3608]
[1723728994653,0.25329224,59419.0,59413.0,0.3608]
[1723728994962,0.42354489,59419.0,59413.0,0.3608]
[1723728995857,0.44654489,59419.0,59413.0,0.3618]
[1723728996169,0.43654489,59419.0,59413.0,0.3618]
[1723728996456,0.45254489,59419.0,59413.0,0.3618]
[1723728996857,0.26254489,59419.0,59413.0,0.3618]
[1723728997056,0.00925265,59419.0,59413.0,0.3618]
[1723728997455,0.00925265,59419.0,59418.0,0.3608]
[1723728997659,0.02125265,59419.0,59418.0,0.444945]
[1723728997859,0.02125265,59419.0,59414.0,0.3608]
[1723728997860,0.27400287,59419.0,59414.0,0.3608]
[1723728998163,0.27400287,59419.0,59413.0,0.002]
[1723728998164,0.3608,59418.0,59413.0,0.001]
[1723728998468,0.02525265,59419.0,59418.0,0.084145]
[1723728998766,0.02525265,59419.0,59413.0,0.3618]
[1723728999065,0.01625265,59419.0,59418.0,0.444945]
[1723728999451,0.01225265,59419.0,59414.0,0.0022]
[1723728999652,0.01225265,59419.0,59413.0,0.36592]
[1723728999859,0.00025265,59419.0,59418.0,0.444945]
[1723729000055,0.01025265,59419.0,59418.0,0.444945]
[1723729000258,0.01025265,59419.0,59418.0,1.349825]
[1723729000259,0.01425265,59419.0,59418.0,1.349825]
[1723729000467,0.01425265,59419.0,59418.0,1.43397]
[1723729000663,0.00425265,59419.0,59418.0,1.43397]
[1723729000857,0.00425265,59419.0,59418.0,0.949825]
[1723729001056,0.00425265,59419.0,59418.0,1.349825]
[1723729001456,0.00425265,59419.0,59418.0,0.444945]
[1723729001661,0.00725265,59419.0,59418.0,0.084145]
[1723729001861,0.76955709,59419.0,59413.0,0.3608]
[1723729002058,0.77955709,59419.0,59414.0,0.08415]
[1723729002263,0.77555709,59419.0,59413.0,0.3608]
[1723729002457,0.77555709,59419.0,59413.0,0.3618]
[1723729002661,0.42512352,59419.0,59413.0,0.3618]
[1723729002870,0.00325265,59419.0,59418.0,0.52909]
[1723729003262,0.00325265,59419.0,59418.0,1.43397]
[1723729003462,0.00325265,59419.0,59418.0,0.444945]
[1723729003761,0.15325265,59419.0,59418.0,0.3608]
[1723729003961,0.41554019,59419.0,59418.0,0.3608]
[1723729004464,0.41554019,59419.0,59413.0,0.3628]
[1723729004658,0.41554019,59419.0,59415.0,0.084148]
[1723729004867,0.41554019,59419.0,59413.0,0.3628]
[1723729005085,0.3608,59418.0,59413.0,0.3628]
[1723729005266,0.9108,59418.0,59413.0,0.3628]
[1723729005464,0.25139736,59417.0,59413.0,0.3608]
[1723729005666,0.72139736,59417.0,59413.0,0.3608]
[1723729005973,0.084149,59415.0,59396.0,0.3608]
[1723729006275,0.3608,59405.0,59397.0,0.444974]
[1723729006464,0.23576,59404.0,59397.0,0.3608]
[1723729006661,0.084167,59403.0,59390.0,0.084184]
[1723729006863,0.594167,59403.0,59390.0,0.084184]
[1723729007069,0.42780093,59402.0,59390.0,0.084184]
[1723729007362,1.44284093,59402.0,59397.0,0.3608]
[1723729007568,0.93780093,59402.0,59397.0,0.3608]
[1723729007867,0.76208034,59402.0,59397.0,0.7216]
[1723729008463,0.18025272,59401.0,59397.0,0.7216]
[1723729008667,0.54,59401.0,59397.0,0.7216]
[1723729008866,1.12025272,59401.0,59397.0,0.7216]
[1723729009064,0.72025272,59401.0,59397.0,0.7226]
[1723729009364,0.54,59401.0,59397.0,0.7226]
[1723729009675,0.54,59401.0,59400.0,0.50504]
[1723729009874,0.54,59401.0,59400.0,0.673382]
[1723729010186,0.44,59404.0,59397.0,0.72572]
[1723729010187,0.2358,59422.0,59416.0,0.084147]
[1723729010364,0.7758,59422.0,59421.0,0.3608]
[1723729010679,0.5485832,59422.0,59421.0,0.94126968]
[1723729011270,0.54,59422.0,59421.0,0.94126968]
[1723729013075,0.547,59422.0,59421.0,0.94126968]
[1723729013278,0.547,59422.0,59421.0,1.02541068]
[1723729013470,0.547,59422.0,59421.0,0.94126968]
[1723729015276,0.54,59422.0,59421.0,0.94126968]
[1723729015481,0.547,59422.0,59421.0,0.85812868]
[1723729015681,0.79848783,59422.0,59421.0,0.3618]
[1723729015980,0.80548783,59422.0,59421.0,0.446941]
[1723729016281,0.80548783,59422.0,59421.0,0.94226968]
[1723729016282,0.79848783,59422.0,59421.0,0.94226968]
[1723729016485,0.80548783,59422.0,59421.0,0.94326968]
[1723729016977,0.79848783,59422.0,59421.0,0.85812868]
[1723729017181,0.417,59422.0,59421.0,1.42741068]
[1723729017581,0.417,59422.0,59421.0,1.34326968]
[1723729017879,0.567,59422.0,59421.0,0.94326968]
[1723729019077,0.567,59422.0,59421.0,0.85812868]
[1723729019078,0.56,59422.0,59421.0,0.85812868]
[1723729019276,0.82189446,59422.0,59421.0,0.85912868]
[1723729019471,0.82916047,59422.0,59421.0,0.3628]
[1723729019872,0.82916047,59422.0,59421.0,0.85912868]
[1723729020184,0.83016047,59422.0,59421.0,0.85912868]
[1723729020487,0.566,59422.0,59421.0,0.94326968]
[1723729020785,0.571,59422.0,59421.0,0.94326968]
[1723729020967,0.571,59422.0,59421.0,1.02741068]
[1723729021278,0.571,59422.0,59421.0,0.85812868]
[1723729021279,0.558,59422.0,59421.0,0.85812868]
[1723729021468,0.81902098,59422.0,59421.0,0.94326968]
[1723729022176,0.81902098,59422.0,59421.0,0.85912868]
[1723729022483,0.99683364,59422.0,59416.0,0.36105242]
[1723729022780,0.99683364,59422.0,59416.0,0.8573811]
[1723729023167,1.00183364,59422.0,59421.0,0.001]
[1723729023373,0.82402098,59422.0,59421.0,0.001]
[1723729023677,0.82118062,59422.0,59421.0,0.85712868]
[1723729023879,0.82118062,59422.0,59421.0,0.94126968]
[1723729024073,0.83218062,59422.0,59421.0,0.94226968]